Workbook

Sheet IDEES D'AMELIORATION ERP

Sheet Accueil
H2: AT TRANSPORT

Sheet Devis
A1: AT TRANSPORT | B1: DEVIS
A2: 3 Rue Louis de Funès
A3: 13090 Les Milles | F3: Numéro client | G3: 5
A4: 0442637383 | F4: Nom société | G4: =VLOOKUP(G3,Clients!A:G,3,FALSE) -> Lyon
F5: Adresse | G5: =VLOOKUP(G3,Clients!A:G,4,FALSE) -> 117 Avenue Mozart
F6: Code postal | G6: =VLOOKUP(G3,Clients!A:G,5,FALSE) -> 69005
F7: Ville | G7: =VLOOKUP(G3,Clients!A:G,6,FALSE) -> Lyon
F8: N°téléphone | G8: =VLOOKUP(G3,Clients!A:G,7,FALSE) -> 478302069
A11: Réf | B11: 1
A12: Date | B12: =TODAY() -> 2017-03-28
A15: Détails
A16: Date prestation | B16: Marque | C16: Modèle | D16: Trajet | F16: Km parcourus | G16: PU km | H16: Montant HT | I16: Tarif de base
A18: 2017-03-22 | B18: RENAULT | C18: R4192 | D18: venelles aix | F18: 50 | G18: =IFERROR(VLOOKUP(C18,Tableau2[[Modèle]:[Facturation au KM]],9),"") -> 8 | H18: =IFERROR(F18*G18,"") -> 400 | I18: =IFERROR(VLOOKUP(C18,Tableau2[[Modèle]:[Prix de la location]],10),"") -> 240
A19: 2017-02-10 | B19: IVECO | C19: AS490 | F19: 12 | G19: =IFERROR(VLOOKUP(C19,Tableau2[[Modèle]:[Facturation au KM]],9),"") -> 12 | H19: =IFERROR(F19*G19,"") -> 144 | I19: =IFERROR(VLOOKUP(C19,Tableau2[[Modèle]:[Prix de la location]],10),"") -> 360
G20: =IFERROR(VLOOKUP(C20,Tableau2[[Modèle]:[Facturation au KM]],9),"") ->  | I20: =IFERROR(VLOOKUP(C20,Tableau2[[Modèle]:[Prix de la location]],10),"") -> 
G21: =IFERROR(VLOOKUP(C21,Tableau2[[Modèle]:[Facturation au KM]],9),"") ->  | I21: =IFERROR(VLOOKUP(C21,Tableau2[[Modèle]:[Prix de la location]],10),"") -> 
G22: =IFERROR(VLOOKUP(C22,Tableau2[[Modèle]:[Facturation au KM]],9),"") ->  | I22: =IFERROR(VLOOKUP(C22,Tableau2[[Modèle]:[Prix de la location]],10),"") -> 
G23: =IFERROR(VLOOKUP(C23,Tableau2[[Modèle]:[Facturation au KM]],9),"") ->  | I23: =IFERROR(VLOOKUP(C23,Tableau2[[Modèle]:[Prix de la location]],10),"") -> 
G24: =IFERROR(VLOOKUP(C24,Tableau2[[Modèle]:[Facturation au KM]],9),"") ->  | I24: =IFERROR(VLOOKUP(C24,Tableau2[[Modèle]:[Prix de la location]],10),"") -> 
G25: =IFERROR(VLOOKUP(C25,Tableau2[[Modèle]:[Facturation au KM]],9),"") ->  | I25: =IFERROR(VLOOKUP(C25,Tableau2[[Modèle]:[Prix de la location]],10),"") -> 
G26: =IFERROR(VLOOKUP(C26,Tableau2[[Modèle]:[Facturation au KM]],9),"") ->  | I26: =IFERROR(VLOOKUP(C26,Tableau2[[Modèle]:[Prix de la location]],10),"") -> 
G27: =IFERROR(VLOOKUP(C27,Tableau2[[Modèle]:[Facturation au KM]],9),"") ->  | I27: =IFERROR(VLOOKUP(C27,Tableau2[[Modèle]:[Prix de la location]],10),"") -> 
G28: =IFERROR(VLOOKUP(C28,Tableau2[[Modèle]:[Facturation au KM]],9),"") ->  | I28: =IFERROR(VLOOKUP(C28,Tableau2[[Modèle]:[Prix de la location]],10),"") -> 
G29: =IFERROR(VLOOKUP(C29,Tableau2[[Modèle]:[Facturation au KM]],9),"") ->  | I29: =IFERROR(VLOOKUP(C29,Tableau2[[Modèle]:[Prix de la location]],10),"") -> 
G30: =IFERROR(VLOOKUP(C30,Tableau2[[Modèle]:[Facturation au KM]],9),"") ->  | I30: =IFERROR(VLOOKUP(C30,Tableau2[[Modèle]:[Prix de la location]],10),"") -> 
G31: =IFERROR(VLOOKUP(C31,Tableau2[[Modèle]:[Facturation au KM]],9),"") ->  | I31: =IFERROR(VLOOKUP(C31,Tableau2[[Modèle]:[Prix de la location]],10),"") -> 
G32: =IFERROR(VLOOKUP(C32,Tableau2[[Modèle]:[Facturation au KM]],9),"") ->  | I32: =IFERROR(VLOOKUP(C32,Tableau2[[Modèle]:[Prix de la location]],10),"") -> 
G33: =IFERROR(VLOOKUP(C33,Tableau2[[Modèle]:[Facturation au KM]],9),"") ->  | I33: =IFERROR(VLOOKUP(C33,Tableau2[[Modèle]:[Prix de la location]],10),"") -> 
G34: Montant HT | I34: =SUM(H18:I33) -> 1144
G35: Taux TVA | I35: 0.1
G36: Montant TVA | I36: =I34*I35 -> 114.4
G37: Montant TTC | I37: =I34+I36 -> 1258.4
A40: Paiement à 15 jours dès réception de la facture. | D40: Pénalités en cas de retard : 1,5 fois le taux d'intérêt légal en vigueur
A44: Siret | E44: BANQUE
A45: Code APE | E45: IBAN | F45: xxxXXXXxxXX
E46: BIC | F46: xxxXXX

Sheet Devis refusés
A1: N° Devis | B1: Date Devis | C1: N° client | D1: Nom société | E1: Date prestation | F1: Marque | G1: Modèle | H1: Trajet | I1: Km parcourus | J1: PU km | K1: Montant HT | L1: Tarif de base | M1: Montant TTC

Sheet Facturation
A1: AT TRANSPORT | B1: FACTURE
A2: 3 Rue Louis de Funès
A3: 139 Les Milles | F3: Numéro client | G3: =Devis!G3 -> 5
A4: 442637383 | F4: Nom société | G4: =Devis!G4 -> Lyon
F5: Adresse | G5: =Devis!G5 -> 117 Avenue Mozart
F6: Code postal | G6: =Devis!G6 -> 69005
F7: Ville | G7: =Devis!G7 -> Lyon
F8: N°téléphone | G8: =Devis!G8 -> 478302069
A11: Réf
A12: Date
A15: Détails
A16: Date prestation | B16: Marque | C16: Modèle | D16: Trajet | F16: Km parcourus | G16: PU km | H16: Montant HT | I16: Tarif de base
A17: =+Devis!A17 -> 0 | B17: =+Devis!B17 -> 0 | C17: =+Devis!C17 -> 0 | D17: =+Devis!D17 -> 0 | E17: =+Devis!E17 -> 0
A18: =IF(A18="","",+Devis!A18) -> 0 | B18: =+Devis!B18 -> RENAULT | C18: =+Devis!C18 -> R4192 | D18: =+Devis!D18 -> venelles aix | E18: =+Devis!E18 -> 0 | F18: =+Devis!F18 -> 50 | G18: =+Devis!G18 -> 8 | H18: =+Devis!H18 -> 400 | I18: =+Devis!I18 -> 240
A19: =IF(A19="","",+Devis!A19) -> 0 | B19: =+Devis!B19 -> IVECO | C19: =+Devis!C19 -> AS490 | D19: =+Devis!D19 -> 0 | E19: =+Devis!E19 -> 0 | F19: =+Devis!F19 -> 12 | G19: =+Devis!G19 -> 12 | H19: =+Devis!H19 -> 144 | I19: =+Devis!I19 -> 360
A20: =IF(A20=0,"",+Devis!A20) -> 0 | B20: =+Devis!B20 -> 0 | C20: =+Devis!C20 -> 0 | D20: =+Devis!D20 -> 0 | E20: =+Devis!E20 -> 0 | F20: =+Devis!F20 -> 0 | G20: =+Devis!G20 ->  | H20: =+Devis!H20 ->  | I20: =+Devis!I20 -> 
A21: =IF(A21=0,"",+Devis!A21) -> 0 | B21: =+Devis!B21 -> 0 | C21: =+Devis!C21 -> 0 | D21: =+Devis!D21 -> 0 | E21: =+Devis!E21 -> 0 | F21: =+Devis!F21 -> 0 | G21: =+Devis!G21 ->  | H21: =+Devis!H21 ->  | I21: =+Devis!I21 -> 
A22: =IF(A22=0,"",+Devis!A22) -> 0 | B22: =+Devis!B22 -> 0 | C22: =+Devis!C22 -> 0 | D22: =+Devis!D22 -> 0 | E22: =+Devis!E22 -> 0 | F22: =+Devis!F22 -> 0 | G22: =+Devis!G22 ->  | H22: =+Devis!H22 ->  | I22: =+Devis!I22 -> 
A23: =IF(A23=0,"",+Devis!A23) -> 0 | B23: =+Devis!B23 -> 0 | C23: =+Devis!C23 -> 0 | D23: =+Devis!D23 -> 0 | E23: =+Devis!E23 -> 0 | F23: =+Devis!F23 -> 0 | G23: =+Devis!G23 ->  | H23: =+Devis!H23 ->  | I23: =+Devis!I23 -> 
A24: =IF(A24=0,"",+Devis!A24) -> 0 | B24: =+Devis!B24 -> 0 | C24: =+Devis!C24 -> 0 | D24: =+Devis!D24 -> 0 | E24: =+Devis!E24 -> 0 | F24: =+Devis!F24 -> 0 | G24: =+Devis!G24 ->  | H24: =+Devis!H24 ->  | I24: =+Devis!I24 -> 
A25: =IF(A25=0,"",+Devis!A25) -> 0 | B25: =+Devis!B25 -> 0 | C25: =+Devis!C25 -> 0 | D25: =+Devis!D25 -> 0 | E25: =+Devis!E25 -> 0 | F25: =+Devis!F25 -> 0 | G25: =+Devis!G25 ->  | H25: =+Devis!H25 ->  | I25: =+Devis!I25 -> 
A26: =IF(A26=0,"",+Devis!A26) -> 0 | B26: =+Devis!B26 -> 0 | C26: =+Devis!C26 -> 0 | D26: =+Devis!D26 -> 0 | E26: =+Devis!E26 -> 0 | F26: =+Devis!F26 -> 0 | G26: =+Devis!G26 ->  | H26: =+Devis!H26 ->  | I26: =+Devis!I26 -> 
A27: =IF(A27=0,"",+Devis!A27) -> 0 | B27: =+Devis!B27 -> 0 | C27: =+Devis!C27 -> 0 | D27: =+Devis!D27 -> 0 | E27: =+Devis!E27 -> 0 | F27: =+Devis!F27 -> 0 | G27: =+Devis!G27 ->  | H27: =+Devis!H27 ->  | I27: =+Devis!I27 -> 
A28: =IF(A28=0,"",+Devis!A28) -> 0 | B28: =+Devis!B28 -> 0 | C28: =+Devis!C28 -> 0 | D28: =+Devis!D28 -> 0 | E28: =+Devis!E28 -> 0 | F28: =+Devis!F28 -> 0 | G28: =+Devis!G28 ->  | H28: =+Devis!H28 ->  | I28: =+Devis!I28 -> 
A29: =IF(A29=0,"",+Devis!A29) -> 0 | B29: =+Devis!B29 -> 0 | D29: =+Devis!D29 -> 0 | E29: =+Devis!E29 -> 0 | H29: =+Devis!H29 -> 
A30: =IF(A30=0,"",+Devis!A30) -> 0 | B30: =+Devis!B30 -> 0 | D30: =+Devis!D30 -> 0 | E30: =+Devis!E30 -> 0 | H30: =+Devis!H30 -> 
A31: =IF(A31=0,"",+Devis!A31) -> 0 | B31: =+Devis!B31 -> 0 | D31: =+Devis!D31 -> 0 | E31: =+Devis!E31 -> 0 | H31: =+Devis!H31 -> 
A32: =IF(A32=0,"",+Devis!A32) -> 0 | B32: =+Devis!B32 -> 0 | D32: =+Devis!D32 -> 0 | E32: =+Devis!E32 -> 0 | H32: =+Devis!H32 -> 
A33: =IF(A33=0,"",+Devis!A33) -> 0 | B33: =+Devis!B33 -> 0 | D33: =+Devis!D33 -> 0 | E33: =+Devis!E33 -> 0 | H33: =+Devis!H33 -> 
G34: Montant HT | I34: =SUM(H18:I33) -> 1144
G35: Taux TVA | I35: =Devis!I35 -> 0.1
G36: Montant TVA | I36: =I34*I35 -> 114.4
G37: Montant TTC | I37: =I34+I36 -> 1258.4
A40: Paiement à 15 jours dès réception de la facture. | D40: Pénalités en cas de retard : 1,5 fois le taux d'intérêt légal en vigueur
A44: Siret | E44: BANQUE
A45: Code APE | E45: IBAN
E46: BIC

Sheet Factures établies (archives)
A1: N° Facture | B1: Dte facture | C1: N° client | D1: Nom société | E1: Date prestation | F1: Marque | G1: Modèle | H1: Trajet | I1: Km parcourus | J1: PU km | K1: Montant HT | L1: Tarif de base | M1: Montant TTC

Sheet Clients
A1: Numero client | B1: Secteur d'activité | C1: Nom du client | D1: Adresse | E1: Code postal | F1: Ville | G1: téléphone
A2: 1 | B2: Club de Rugby | C2: RC Toulon | D2: 17 rue madon | E2: 83002 | F2: Toulon | G2: 442255864
A3: 2 | B3: Club de Rugby | C3: Stade Toulousain | D3: 152 rue des pins | E3: 31000 | F3: Toulouse | G3: 451256987
A4: 3 | B4: Club de Rugby | C4: Clermont Ferrand | D4: 36 avenue des champs | E4: 63000 | F4: Clermont | G4: 495458930
A5: 4 | B5: Club de Rugby | C5: Grenoble | D5: 14 route de Berg | E5: 38000 | F5: Grenoble | G5: 456369125
A6: 5 | B6: Club de Rugby | C6: Lyon | D6: 117 Avenue Mozart | E6: 69005 | F6: Lyon | G6: 478302069
A7: 6 | B7: Club de Rugby | C7: Marseille | D7: 88 avenue Sopraba | E7: 13002 | F7: Marseille | G7: 491253092
A8: 7 | B8: Club de Rugby | C8: Castres | D8: 19 rue jaimal | E8: 81000 | F8: Castres | G8: 476980209
A9: 8 | B9: Club de Rugby | C9: Biarritz | D9: 47 route des oliviers | E9: 64200 | F9: Biarritz | G9: 470154607
A10: 9 | B10: Club de Rugby | C10: Perpignan | D10: 25 boulevard jobard | E10: 66000 | F10: Perpignan | G10: 429583996
A11: 10 | B11: Club de Rugby | C11: Bayonne | D11: 14 boulevard joliette | E11: 64100 | F11: Bayonne | G11: 415061599
A12: 11 | B12: Club de Football | C12: OM | D12: 115 la commanderie | E12: 13012 | F12: Marseille | G12: 491253913
A13: 12 | B13: Club de Football | C13: AS Monaco | D13: 36 avenue le rocher | E13: 98000 | F13: Monaco | G13: 419292037
A14: 13 | B14: Club de Football | C14: Nice | D14: 20 avenue des anglais | E14: 6000 | F14: Nice | G14: 491068905
A15: 14 | B15: Club de Football | C15: Montpellier | D15: 274 rue la paillade | E15: 34000 | F15: Montpellier | G15: 459583036
A16: 15 | B16: Club de Football | C16: Nimes | D16: 1 route des roses | E16: 30000 | F16: Nimes | G16: 459251702
A17: 16 | B17: Club de Football | C17: AS Cannes | D17: 3 rue des bourgeois | E17: 6400 | F17: Cannes | G17: 412069851
A18: 17 | B18: Club de Football | C18: Lyon | D18: 5 avenue des tulipes | E18: 69000 | F18: Lyon | G18: 429120958
A19: 18 | B19: Club de Football | C19: St Etienne | D19: 7 chemin des verts | E19: 42000 | F19: St-Etienne | G19: 441044239
A20: 19 | B20: Club de Football | C20: Marseille Consolat | D20: 10 route des fleurs | E20: 13012 | F20: Marseille | G20: 491590202
A21: 20 | B21: Club de Football | C21: Aix | D21: 77 cours mirabeau | E21: 13090 | F21: Aix-en-Provence | G21: 492097475
A22: 21 | B22: Handball | C22: Aix | D22: 8 rue du chemin rouge | E22: 13090 | F22: Aix-en-Provence | G22: 452990630
A23: 22 | B23: Handball | C23: Istres | D23: 2 boulevard Méditerrannée | E23: 13118 | F23: Istres | G23: 493262649
A24: 23 | B24: Handball | C24: Nimes | D24: 16 avenue des crocodiles | E24: 30000 | F24: Nimes | G24: 493262650
A25: 24 | B25: Handball | C25: Montpellier | D25: 9 chemin de la fosse | E25: 34000 | F25: Montpellier | G25: 491026943
A26: 25 | B26: Handball | C26: St Raphael | D26: 12 boulevard de la plage | E26: 83530 | F26: St-Raphael | G26: 412963674
A27: 26 | B27: Basket | C27: Venelles | D27: 4 rue Cousto | E27: 13770 | F27: Venelles | G27: 496392014
A28: 27 | B28: Basket | C28: Aix | D28: 5 avenue Beethoven | E28: 13090 | F28: Aix-en-Provence | G28: 491207896
A29: 28 | B29: Basket | C29: Marseille | D29: 1 cours sextius | E29: 13001 | F29: Marseille | G29: 491493697
A30: 29 | B30: Hockey | C30: Gap | D30: 32 route marguerite | E30: 5000 | F30: Gap | G30: 492520369
A31: 30 | B31: Hockey | C31: Marseille | D31: 6 avenue Saglisse | E31: 13003 | F31: Marseille | G31: 491395201
A32: 31 | B32: Hockey | C32: Briancon | D32: 10 chemin des bulles | E32: 5100 | F32: Briancon | G32: 492410139
A33: 32 | B33: Volleyball | C33: Aix | D33: 8 rue rotonde | E33: 13090 | F33: Aix-en-Provence | G33: 490584123
A34: 33 | B34: Volleyball | C34: Marignane | D34: 4 avenue poisson | E34: 13250 | F34: Marignane | G34: 497208696
A35: 34 | B35: Volleyball | C35: Istres | D35: 87 boulevard Pompidou | E35: 13118 | F35: Istres | G35: 491263974

Sheet Charges
A1: Charges N
I3: durée amortissement: | J3: 5
I4: Prix du litre Carburant Diesel | J4: 0.9
I5: Prix du litre Carburant Essence | J5: 1.1
C8: CHARGES FIXES | E8: CHARGES VARIABLES
A9: Véhicules | B9: Immatriculation | C9: AMORTISSEMENT | D9: ASSURANCE | E9: CARBURANT | F9: ENTRETIEN | G9: TOTAL
A10: AS440 | B10: AE-915-KP | C10: =VLOOKUP(B10,Tableau2[[Numéro Immatriculation]:[Prix d''acquisition]],2,FALSE)/$J$3 -> 16000 | D10: 1500 | F10: 1000 | G10: =SUM(C10:F10) -> 18500
A11: AS490 | B11: FS-452-ML | C11: =VLOOKUP(B11,Tableau2[[Numéro Immatriculation]:[Prix d''acquisition]],2,FALSE)/$J$3 -> 17000 | D11: 1500 | G11: =SUM(C11:F11) -> 18500
A12: AS710 | B12: BD-471-ZY | C12: =VLOOKUP(B12,Tableau2[[Numéro Immatriculation]:[Prix d''acquisition]],2,FALSE)/$J$3 -> 16600 | D12: 1500 | G12: 18100
A13: GK290 | B13: AP-217-DX | C13: =VLOOKUP(B13,Tableau2[[Numéro Immatriculation]:[Prix d''acquisition]],2,FALSE)/$J$3 -> 24000 | D13: 1500 | F13: 560 | G13: 26060
A14: GK140 | B14: DX-452-MP | C14: =VLOOKUP(B14,Tableau2[[Numéro Immatriculation]:[Prix d''acquisition]],2,FALSE)/$J$3 -> 22000 | D14: 1500 | G14: 23500
A15: R4192 | B15: DR-784-YU | C15: =VLOOKUP(B15,Tableau2[[Numéro Immatriculation]:[Prix d''acquisition]],2,FALSE)/$J$3 -> 4000 | D15: 1100 | G15: 5100
A16: TRAFIC | B16: CD-415-PM | C16: =VLOOKUP(B16,Tableau2[[Numéro Immatriculation]:[Prix d''acquisition]],2,FALSE)/$J$3 -> 3000 | D16: 900 | G16: 3900
A17: TOURISMO KRH | B17: AC-557-RT | C17: =VLOOKUP(B17,Tableau2[[Numéro Immatriculation]:[Prix d''acquisition]],2,FALSE)/$J$3 -> 30000 | D17: 1700 | F17: 2300 | G17: 34000
A18: TRAVEGO | B18: MP-876-OI | C18: =VLOOKUP(B18,Tableau2[[Numéro Immatriculation]:[Prix d''acquisition]],2,FALSE)/$J$3 -> 36000 | D18: 1700 | G18: 37700
A19: TOURISMO | B19: PL-128-KL | C19: =VLOOKUP(B19,Tableau2[[Numéro Immatriculation]:[Prix d''acquisition]],2,FALSE)/$J$3 -> 39000 | D19: 1700 | F19: 840 | G19: 41540
A20: TOURISMO | B20: KY-569-LM | C20: =VLOOKUP(B20,Tableau2[[Numéro Immatriculation]:[Prix d''acquisition]],2,FALSE)/$J$3 -> 32800 | D20: 1700 | G20: 34500
A21: TRAVEGO | B21: GH-421-TR | C21: =VLOOKUP(B21,Tableau2[[Numéro Immatriculation]:[Prix d''acquisition]],2,FALSE)/$J$3 -> 31040 | D21: 1700 | G21: 32740
B22: TOTAL | C22: =SUM(C10:C21) -> 271440 | D22: =SUM(D10:D21) -> 18000 | E22: =SUM(E10:E21) -> 0 | F22: 4700

Sheet Résultat
B3: Frais fixe | F3: Résultats en cours
B5: Electricité et eau | F5: Ventes :
B6: Loyer | F6: Achats :
B7: Frais bancaire | F7: Résultat :
B8: Entretien | F8: Personnel :
B9: Marketing | F9: Transport :
B10: Poste et télécom | F10: Fraix Fixe :
B11: Total : | D11: 0 | F11: Charges Personnels :
B12: Charges de Personnel | F12: Résultat avant IS :
F13: IS :
B14: Salaire | C14: Charges sociales | D14: Total | F14: Résultat après IS :
B15: 0 | C15: 0 | D15: 0

Sheet Parc de bus
A1: Marque | B1: Modèle | C1: Numéro Immatriculation | D1: Prix d'acquisition | E1: Année | F1: Kilométrage origine | G1: Km parcourus | H1: Carburant | I1: Consommation L/100 | J1: Facturation au KM | K1: Prix de la location | N1: Carburant | O1: Marque | P1: Modèle
A2: IVECO | B2: AS440 | C2: AE-915-KP | D2: 80000 | E2: 2014 | F2: 250000 | H2: DIESEL | I2: 20 | J2: 10 | K2: =Tableau2[[#This Row],[Facturation au KM]]*30 -> 300 | N2: DIESEL | O2: IVECO | P2: AS440
A3: IVECO | B3: AS490 | C3: FS-452-ML | D3: 85000 | E3: 2015 | F3: 102000 | H3: ESSENCE | I3: 20 | J3: 12 | K3: =Tableau2[[#This Row],[Facturation au KM]]*30 -> 360 | N3: ESSENCE | O3: MAN | P3: AS490
A4: IVECO | B4: AS710 | C4: BD-471-ZY | D4: 83000 | E4: 2015 | F4: 99000 | H4: ESSENCE | I4: 22 | J4: 11 | K4: =Tableau2[[#This Row],[Facturation au KM]]*30 -> 330 | O4: RENAULT | P4: AS710
A5: MAN | B5: GK290 | C5: AP-217-DX | D5: 120000 | E5: 2013 | F5: 335000 | H5: DIESEL | I5: 24 | J5: 18 | K5: =Tableau2[[#This Row],[Facturation au KM]]*30 -> 540 | O5: MERCEDES | P5: GK290
A6: MAN | B6: GK140 | C6: DX-452-MP | D6: 110000 | E6: 2014 | F6: 325000 | H6: DIESEL | I6: 23 | J6: 16 | K6: =Tableau2[[#This Row],[Facturation au KM]]*30 -> 480 | P6: GK140
A7: RENAULT | B7: R4192 | C7: DR-784-YU | D7: 20000 | E7: 2013 | F7: 300000 | H7: DIESEL | I7: 15 | J7: 8 | K7: =Tableau2[[#This Row],[Facturation au KM]]*30 -> 240 | P7: R4192
A8: RENAULT | B8: TRAFIC | C8: CD-415-PM | D8: 15000 | E8: 2014 | F8: 260000 | H8: ESSENCE | I8: 13 | J8: 7 | K8: =Tableau2[[#This Row],[Facturation au KM]]*30 -> 210 | P8: TRAFIC
A9: MERCEDES | B9: TOURISMO KRH | C9: AC-557-RT | D9: 150000 | E9: 2015 | F9: 50000 | H9: DIESEL | I9: 30 | J9: 22 | K9: =Tableau2[[#This Row],[Facturation au KM]]*30 -> 660 | P9: TOURISMO KRH
A10: MERCEDES | B10: TRAVEGO | C10: MP-876-OI | D10: 180000 | E10: 2016 | F10: 0 | H10: ESSENCE | I10: 35 | J10: 25 | K10: =Tableau2[[#This Row],[Facturation au KM]]*30 -> 750 | P10: TRAVEGO
A11: MERCEDES | B11: TOURISMO | C11: PL-128-KL | D11: 195000 | E11: 2016 | F11: 0 | H11: DIESEL | I11: 33 | J11: 23 | K11: =Tableau2[[#This Row],[Facturation au KM]]*30 -> 690 | P11: TOURISMO
A12: MERCEDES | B12: TOURISMO | C12: KY-569-LM | D12: 164000 | E12: 2015 | F12: 80000 | H12: ESSENCE | I12: 31 | J12: 23 | K12: =Tableau2[[#This Row],[Facturation au KM]]*30 -> 690
A13: MERCEDES | B13: TRAVEGO | C13: GH-421-TR | D13: 155200 | E13: 2015 | F13: 70000 | H13: DIESEL | I13: 41 | J13: 25 | K13: =Tableau2[[#This Row],[Facturation au KM]]*30 -> 750
